bitfinex/quotes_ETHUSD_20250925
["timestamp","ask_amount","ask_price","bid_price","bid_amount"]
[1758832249454,1.79329544,3904.4,3904.3,2.56127859]
[1758832249648,1.79329544,3904.6,3903.8,0.7006]
[1758832249885,0.128,3904.4,3904.3,2.56127859]
[1758832250087,0.128,3904.4,3904.3,3.26187859]
[1758832251774,0.128,3904.4,3904.3,3.53597605]
[1758832251956,1.79329544,3904.7,3904.6,2.5610818]
[1758832252157,1.79429544,3904.8,3904.7,2.56101621]
[1758832252356,1.79429544,3904.8,3904.7,4.05361621]
[1758832252357,0.001,3904.8,3904.7,4.05361621]
[1758832253058,0.001,3904.8,3904.7,4.07922637]
[1758832253253,0.001,3904.8,3904.7,4.74988295]
[1758832253568,0.001,3904.8,3904.7,4.72427279]
[1758832253769,0.001,3904.8,3904.7,7.72427279]
[1758832254761,0.001,3904.8,3904.7,12.14027279]
[1758832255089,0.001,3904.8,3904.7,14.27427279]
[1758832255493,0.001,3904.8,3904.7,7.72427279]
[1758832255692,0.001,3904.8,3904.7,10.76801621]
[1758832256194,0.001,3904.8,3904.7,7.05361621]
[1758832256402,0.001,3904.8,3904.7,11.48261621]
[1758832257310,0.001,3904.8,3904.7,13.01961621]
[1758832257513,0.001,3904.8,3904.7,14.73366192]
[1758832257819,0.001,3905.2,3905.1,4.88975388]
[1758832258018,0.001,3905.2,3905.1,12.32475388]
[1758832258310,0.001,3905.2,3905.1,13.02535388]
[1758832260495,0.54168283,3905.2,3905.1,13.02535388]
[1758832260694,0.54168283,3905.2,3905.1,13.29945134]
[1758832262308,0.54168283,3905.2,3905.1,13.42745134]
[1758832262509,1e-08,3905.2,3905.1,13.42745134]
[1758832262830,0.001,3905.6,3905.5,4.88949161]
[1758832263020,0.001,3905.6,3905.5,14.45249161]
[1758832263324,0.001,3905.6,3905.5,16.86713732]
[1758832264206,0.001,3905.6,3905.5,10.30413732]
[1758832264729,0.001,3905.6,3905.5,6.98849161]
[1758832265039,0.001,3905.6,3905.5,10.67669161]
[1758832265237,0.001,3905.6,3905.5,10.78049161]
[1758832265535,0.001,3905.6,3905.5,10.43679161]
[1758832265741,0.001,3905.6,3905.5,13.00569161]
[1758832265940,0.001,3905.6,3905.5,14.56231792]
[1758832266118,0.001,3905.6,3905.5,14.11401792]
[1758832266316,0.001,3905.6,3905.5,13.87411792]
[1758832266718,0.001,3905.6,3905.5,9.44611792]
[1758832266946,0.001,3905.6,3905.5,12.32749161]
[1758832267888,0.001,3905.6,3905.5,13.01569161]
[1758832268154,0.001,3905.6,3905.5,7.88949161]
[1758832268314,0.001,3905.6,3905.5,12.32749161]
[1758832269426,0.687,3905.6,3904.4,2.133]
[1758832269627,2.24181765,3905.5,3904.5,4.442]
[1758832269814,3.91273164,3905.1,3903.5,0.2399]
[1758832270016,0.686,3905.4,3904.2,2.56132734]
[1758832270017,1.35192514,3904.9,3904.2,2.56132734]
[1758832270213,0.686,3905.0,3904.1,3.641]
[1758832270443,0.686,3905.0,3904.3,1.537]
[1758832270644,2.03792514,3905.0,3904.4,2.58677473]
[1758832270848,2.03792514,3905.0,3904.4,0.02561212]
[1758832271048,2.49778713,3905.0,3904.3,5.98]
[1758832271212,0.20389251,3905.5,3903.7,5.48660793]
[1758832271213,2.03792514,3904.9,3904.1,4.443]
[1758832271419,2.03792514,3904.8,3904.0,4.443]
[1758832271681,2.03792514,3904.8,3903.9,7.00449041]
[1758832271881,2.03792514,3904.8,3904.2,2.5613419]
[1758832272045,2.03792514,3904.8,3904.1,2.56140482]
[1758832272371,0.686,3904.8,3904.1,2.56140482]
[1758832272540,3.23784399,3904.7,3903.9,7.00448183]
[1758832272743,3.03018824,3904.6,3903.9,4.443]
[1758832272942,0.128,3904.1,3903.9,7.00453825]
[1758832273176,0.128,3904.1,3904.0,2.5614754]
[1758832274577,0.128,3904.7,3904.5,2.56110186]
[1758832274794,0.54165726,3904.6,3904.5,7.00014739]
[1758832274997,1.22765726,3904.6,3904.3,7.0002131]
[1758832275171,0.20389251,3905.5,3904.4,2.561204]
[1758832275172,1.22765726,3904.5,3904.4,2.561204]
[1758832275497,0.54165726,3904.5,3904.4,2.56121299]
[1758832276160,0.128,3904.6,3904.5,2.56114739]
[1758832276489,0.6701421,3904.6,3904.5,2.56114739]
[1758832277783,0.5421421,3904.9,3904.8,2.56095062]
[1758832277985,0.5421421,3904.9,3904.8,7.79295062]
[1758832278187,0.128,3905.1,3905.0,2.56081946]
[1758832278405,0.54285957,3905.5,3905.4,2.56055717]
[1758832278762,1.19335957,3905.5,3905.4,2.56055717]
[1758832279083,0.54285957,3905.5,3905.4,2.56055717]
[1758832280195,0.001,3905.6,3905.5,2.56049161]
[1758832280384,0.54385957,3905.6,3905.4,6.99854165]
[1758832280587,0.76075957,3905.6,3905.4,6.99854165]
[1758832280904,0.2179,3905.6,3905.5,2.56049161]
[1758832281202,0.2179,3905.6,3905.4,6.99855411]
[1758832281574,0.2179,3905.6,3905.5,2.56049161]
[1758832282323,0.001,3905.6,3905.5,2.56049161]
[1758832282495,0.001,3905.6,3905.4,6.99853755]
[1758832282808,0.128,3905.4,3904.8,1.537]
[1758832283019,0.128,3905.1,3904.7,6.99401286]
[1758832283220,0.6505,3905.0,3904.7,4.433]
[1758832283422,0.128,3904.7,3904.5,4.433]
[1758832283602,0.128,3904.7,3904.5,6.99411568]
[1758832283909,0.2169,3904.6,3904.3,0.002]
[1758832284077,0.54285957,3904.5,3904.3,0.002]
[1758832284278,0.54285957,3904.4,3904.3,0.002]
[1758832284508,0.97645957,3904.4,3904.3,0.002]
[1758832284714,3.75457256,3904.4,3904.3,0.002]
[1758832284913,4.47662132,3904.4,3904.3,0.002]
[1758832285076,7.47662132,3904.4,3904.3,0.002]
[1758832285285,18.73726532,3904.4,3904.3,0.002]
[1758832285593,2.5614754,3904.0,3903.9,0.002]
[1758832285809,12.67233497,3904.0,3903.9,0.002]
[1758832285980,26.08408122,3904.0,3903.9,0.002]
[1758832286724,35.80358022,3904.0,3903.9,0.002]
[1758832286922,28.55347722,3904.0,3903.9,0.002]
[1758832287292,19.43901722,3904.0,3903.9,0.002]
[1758832287519,23.63814122,3904.0,3903.9,0.002]
[1758832287706,15.64865682,3904.0,3903.9,0.002]
[1758832288035,3.0,3903.9,3902.6,0.002]
[1758832288221,2.56220887,3902.9,3902.6,0.002]
[1758832288401,3.0,3902.7,3902.6,0.002]
[1758832288607,6.10518821,3902.7,3902.6,0.002]
[1758832288807,6.53878821,3902.7,3902.6,0.002]
[1758832289101,0.54285957,3902.7,3902.6,0.002]
[1758832289296,9.573,3902.7,3902.6,0.002]
[1758832289497,10.11585957,3902.7,3902.6,0.002]
[1758832289694,0.54285957,3902.7,3902.6,0.002]
[1758832289893,2.23444001,3903.8,3902.6,0.002]
[1758832289894,4.439,3902.9,3902.6,0.002]
[1758832290793,0.71158596,3902.8,3902.6,0.002]
[1758832291039,7.867592,3902.7,3902.6,0.002]
[1758832291240,10.73538021,3902.7,3902.6,0.002]
[1758832291392,4.02962157,3902.7,3902.6,0.002]
[1758832291591,6.59195021,3902.7,3902.6,0.002]
[1758832291898,8.02271807,3902.7,3902.6,0.002]
[1758832292113,5.18645607,3902.7,3902.6,0.002]
[1758832292445,6.577,3902.7,3902.6,0.002]
[1758832292643,24.80508521,3902.7,3902.6,0.002]
[1758832292805,3.54285957,3902.7,3902.6,0.002]
[1758832293006,9.575,3902.7,3902.6,0.002]
[1758832293210,3.5389564,3902.7,3902.6,0.002]
[1758832293406,2.135,3903.0,3902.6,0.002]
[1758832293605,4.441,3902.9,3902.6,0.002]
[1758832293810,2.56232864,3902.7,3902.6,0.002]
[1758832294030,11.81108264,3902.7,3902.6,0.002]
[1758832294280,9.11290504,3902.7,3902.6,0.002]
[1758832294582,0.5389564,3902.7,3902.6,0.002]
[1758832294761,0.40188458,3902.9,3902.6,0.002]
[1758832294947,0.2169,3903.2,3902.6,0.002]
[1758832294948,6.576,3902.8,3902.6,0.002]
[1758832295142,3.75888504,3902.7,3902.6,0.002]
[1758832295346,4.40938504,3902.7,3902.6,0.002]
[1758832295844,3.97578504,3902.7,3902.6,0.002]
[1758832296160,9.79592864,3902.7,3902.6,0.002]
[1758832296334,1.1965564,3902.7,3902.6,0.002]
[1758832296540,1.1965564,3902.7,3902.6,0.2393]
[1758832296541,6.575,3902.7,3902.6,0.2393]
[1758832296962,6.575,3902.7,3902.6,0.002]
[1758832297671,3.0,3903.1,3902.6,0.002]
[1758832297870,6.575,3903.0,3902.6,0.6682]
[1758832298068,3.46272763,3903.7,3902.7,0.6662]
[1758832298241,2.56202911,3903.2,3902.7,0.2373]
[1758832298436,0.128,3902.7,3902.6,0.002]
[1758832298675,4.568,3902.7,3902.6,0.002]
[1758832299070,0.128,3902.7,3902.6,3.2305943]
[1758832299938,0.53935801,3903.4,3902.9,2.5621817]
[1758832300138,0.128,3903.0,3902.7,0.6662]
[1758832300478,0.128,3903.0,3902.8,0.6662]
[1758832300674,0.128,3903.0,3902.9,0.6662]
[1758832301248,0.128,3903.0,3902.9,4.76939734]
[1758832301592,0.53935801,3903.4,3903.2,1.541]
[1758832301800,0.001,3903.9,3903.2,1.541]
[1758832301801,0.128,3903.5,3903.2,1.541]
[1758832302187,0.128,3903.5,3903.3,2.2072]
[1758832302391,0.128,3903.5,3903.3,1.9699]
[1758832302577,0.128,3903.5,3902.8,0.128]
[1758832302578,0.128,3903.5,3902.8,1.541]
[1758832302787,2.56254307,3903.9,3903.3,0.4289]
[1758832303016,2.5626044,3903.9,3903.3,0.4289]
[1758832303214,2.56166167,3903.8,3903.3,0.6662]
[1758832303413,0.54195775,3903.9,3903.1,1.541]
[1758832303571,2.56175257,3903.6,3903.1,1.541]
[1758832303775,4.436,3903.6,3902.9,1.541]
[1758832304084,4.436,3903.6,3903.0,2.56208397]
[1758832304284,4.97695775,3903.6,3903.0,2.56208397]
[1758832304485,4.434,3903.5,3903.1,2.56204887]
[1758832304824,4.434,3903.5,3903.2,0.6662]
[1758832305022,0.54100503,3903.7,3903.2,0.2373]
[1758832305201,0.001,3903.9,3902.9,1.541]
[1758832305405,2.56174712,3903.6,3902.9,4.34047636]
[1758832305708,4.433,3903.5,3902.9,1.7783]
[1758832305869,2.56191386,3903.4,3902.9,0.2373]
[1758832306076,1.55066924,3903.4,3902.6,0.002]
[1758832306319,1.22666594,3903.4,3902.6,0.002]
[1758832306529,1.76756924,3903.4,3902.6,0.002]
[1758832306822,0.9745033,3903.3,3902.6,0.002]
[1758832306975,2.56232864,3902.7,3902.6,0.002]
[1758832307174,6.99332864,3902.7,3902.6,0.002]
[1758832307402,7.53423194,3902.7,3902.6,0.002]
[1758832308305,10.95743,3902.7,3902.6,0.002]
[1758832308510,8.39510136,3902.7,3902.6,0.002]
[1758832308711,10.95743,3902.7,3902.6,0.002]
[1758832308886,10.95643,3902.7,3902.6,0.002]
[1758832309294,0.5409033,3902.7,3902.6,0.002]
[1758832309498,4.43,3902.7,3902.6,0.2416]
[1758832310021,6.99232864,3902.7,3902.6,0.002]
[1758832310218,4.9709033,3902.7,3902.6,0.002]
[1758832312294,4.9679033,3902.7,3902.6,0.002]
[1758832312495,0.5409033,3902.7,3902.6,5.6010943]
[1758832312799,0.128,3903.0,3902.8,1.541]
[1758832313001,0.54270717,3902.9,3902.8,1.541]
[1758832313428,0.54270717,3902.9,3902.6,0.002]
[1758832313608,0.54270717,3902.8,3902.6,1.543]
[1758832313930,0.128,3903.0,3902.6,1.543]
[1758832313931,0.54270717,3902.7,3902.6,4.1053943]
[1758832314112,0.54270717,3902.7,3902.6,4.78518615]
[1758832314307,0.54270717,3902.7,3902.6,5.81678615]
[1758832314524,0.54270717,3902.7,3902.6,6.40888615]
[1758832317652,0.900995,3903.7,3903.3,4.10293477]
[1758832317826,0.001,3903.9,3903.8,1.65358237]
[1758832318106,0.54454474,3903.9,3903.8,4.215189]
[1758832319222,0.54454474,3903.9,3903.8,7.94450506]
[1758832319223,0.001,3903.9,3903.8,7.94450506]
[1758832319418,0.001,3903.9,3903.8,7.918889]
[1758832320259,0.001,3903.9,3903.8,0.86158237]
[1758832320557,0.54418364,3903.9,3903.8,3.423189]
[1758832320910,0.54418364,3903.9,3903.8,3.662789]
[1758832321111,0.54418364,3903.9,3903.8,0.86158237]
[1758832321345,0.54418364,3903.9,3903.8,2.56160663]
[1758832321654,0.54418364,3903.9,3903.7,0.86158237]
[1758832321836,0.54318364,3903.8,3903.7,0.86158237]
[1758832322025,0.54318364,3903.8,3903.7,3.42325462]
[1758832322214,0.54318364,3903.8,3903.7,0.86158237]
[1758832322549,0.54318364,3903.8,3903.4,0.86158237]
[1758832322713,0.5429326,3903.7,3903.4,3.42339581]
[1758832323018,0.5429326,3903.6,3903.5,2.5618035]
[1758832323226,0.5429326,3903.8,3903.5,2.5618035]
[1758832323453,0.5429326,3903.7,3903.6,3.42332025]
[1758832323610,0.001,3903.9,3903.8,1.65358237]
[1758832323815,0.001,3903.9,3903.8,3.423189]
[1758832324245,0.001,3903.9,3903.8,0.86158237]
[1758832324470,0.001,3903.9,3903.8,3.423189]
[1758832324471,0.54388131,3903.9,3903.8,3.423189]
[1758832324673,0.001,3903.9,3903.8,3.423189]
[1758832324874,0.001,3903.9,3903.8,4.15060506]
[1758832325498,0.001,3903.9,3903.8,1.11549843]
[1758832325789,0.6499,3903.9,3903.0,2.56207856]
[1758832325947,0.9183013,3903.8,3903.1,2.56205429]
[1758832326144,0.54288131,3903.7,3902.9,4.431]
[1758832326462,0.6499,3903.9,3903.0,0.02562131]
[1758832326463,0.54288131,3903.6,3903.0,0.02562131]
[1758832326666,0.54288131,3903.8,3903.5,2.5618035]
[1758832326863,0.54288131,3903.7,3903.2,4.10299241]
[1758832327066,0.54288131,3903.6,3903.2,4.10299972]
[1758832327252,0.54288131,3903.8,3903.3,2.56193011]
[1758832327444,0.54288131,3903.7,3902.8,0.792]
[1758832327782,0.128,3903.2,3903.1,2.56206605]
[1758832328548,0.128,3903.2,3902.8,5.00485401]
[1758832328549,0.128,3903.2,3902.7,0.2283]
[1758832328880,0.128,3902.9,3902.7,2.56232864]
[1758832329043,0.128,3902.9,3902.6,0.002]
[1758832329250,0.128,3902.9,3902.6,2.56434238]
[1758832329554,0.2169,3902.9,3902.6,0.002]
[1758832329755,3.21118022,3902.8,3902.6,0.002]
[1758832329954,0.6489,3902.8,3902.6,0.002]
[1758832330167,2.56232864,3902.7,3902.6,0.002]
[1758832330484,3.21122864,3902.7,3902.6,0.002]
[1758832330659,8.01463963,3902.7,3902.6,0.002]
[1758832330865,9.90901344,3902.7,3902.6,0.002]
[1758832331263,12.20389044,3902.7,3902.6,0.002]
[1758832331903,17.32957694,3902.7,3902.6,0.002]
[1758832332117,0.128,3902.6,3900.4,0.4735]
[1758832332267,0.90399923,3902.0,3900.1,2.135]
[1758832332587,3.46703448,3901.7,3900.2,3.26576536]
[1758832332789,0.54288131,3901.6,3900.3,2.79220244]
[1758832332965,4.97488131,3901.5,3900.7,2.56359894]
[1758832333163,2.476614,3901.4,3900.0,5.0]
[1758832333362,3.05443007,3901.3,3900.0,5.0]
[1758832333581,0.90399923,3900.9,3900.0,5.0]
[1758832333864,7.11388131,3900.8,3900.0,5.0]
[1758832334082,0.54288131,3900.7,3900.0,5.0]
[1758832334402,2.56376272,3900.6,3900.0,5.0]
[1758832334594,1.24581229,3900.6,3900.0,5.0]
[1758832335263,2.56383849,3900.5,3900.0,5.0]
[1758832335618,1.7886936,3900.6,3900.0,5.0]
[1758832335900,2.56377769,3900.5,3900.0,5.0]
[1758832336095,2.78067859,3900.5,3900.0,5.0]
[1758832336296,1.15723722,3900.5,3900.0,5.0]
[1758832337198,4.434,3900.4,3900.0,5.0]
[1758832337418,1.15723722,3900.5,3900.0,5.0]
[1758832337569,4.431,3900.3,3900.0,5.0]
[1758832337969,0.432,3901.2,3900.1,0.2345]
[1758832338197,5.826,3901.1,3900.1,0.71964036]
[1758832338410,0.2169,3901.4,3900.1,0.71964036]
[1758832338411,1.12089923,3901.9,3900.3,0.792]
[1758832338579,6.567,3901.8,3901.0,2.56340479]
[1758832338782,5.71738456,3901.7,3900.6,0.02563708]
[1758832338991,5.71738456,3901.7,3901.0,2.56341353]
[1758832339170,0.74709992,3901.7,3901.2,2.56331385]
[1758832339391,2.479,3901.8,3901.3,0.71963248]
[1758832339592,4.432,3901.8,3901.4,0.2345]
[1758832339820,0.2169,3901.7,3900.6,0.2345]
[1758832340130,0.2169,3901.7,3900.7,2.56364242]
[1758832340292,4.432,3901.8,3900.7,2.56364242]
[1758832340487,4.432,3901.8,3900.8,3.25755399]
[1758832340688,4.432,3901.8,3901.2,2.56326933]
[1758832340931,0.4679,3902.2,3900.4,2.136]
[1758832340932,0.001,3902.2,3901.3,0.02563248]
[1758832341226,4.431,3901.8,3901.0,2.56342581]
[1758832341808,6.99392737,3901.8,3901.0,2.56342581]
[1758832342016,5.60026646,3901.8,3900.8,0.2345]
[1758832342214,2.56299074,3901.7,3900.8,0.2345]
[1758832342428,0.128,3901.0,3900.8,0.2345]
[1758832342794,0.128,3901.0,3900.9,2.56351098]
[1758832342993,0.128,3901.0,3900.9,3.25751098]
[1758832343632,0.128,3901.0,3900.8,0.02563576]
[1758832343633,0.128,3901.0,3900.8,2.56356275]
[1758832343816,0.128,3901.0,3900.9,2.79801098]
[1758832344018,0.128,3901.0,3900.9,0.2345]
[1758832344213,0.128,3901.0,3900.9,2.79801098]
[1758832344810,0.128,3901.0,3900.9,3.25751098]
[1758832344999,0.128,3901.0,3900.9,3.84218827]
[1758832345199,0.128,3901.0,3900.9,1.27867729]
[1758832345429,0.128,3901.0,3900.9,3.25751098]
[1758832345932,0.128,3901.0,3900.9,2.56351098]
[1758832346129,0.128,3901.0,3900.9,2.79801098]
[1758832346316,0.128,3901.0,3900.9,4.79851098]
[1758832346927,0.128,3901.0,3900.9,1.541]
[1758832347307,0.128,3901.0,3900.9,2.56351098]
[1758832348147,0.128,3901.0,3900.4,2.5955]
[1758832348148,0.128,3901.0,3900.4,4.10481831]
[1758832348439,0.128,3900.7,3900.2,2.56395753]
[1758832348642,0.128,3900.2,3900.0,9.8865]
[1758832348958,0.128,3900.2,3900.1,3.02353681]
[1758832349245,0.128,3900.2,3900.1,3.25803681]
[1758832349611,0.128,3900.2,3900.1,3.28367717]
[1758832350014,0.128,3900.2,3900.1,3.25803681]
[1758832350841,0.128,3900.2,3900.1,0.694]
[1758832351043,0.128,3900.2,3900.1,3.25803681]
[1758832352444,0.128,3900.2,3900.1,3.28367717]
[1758832352647,0.128,3900.2,3900.1,11.71926099]
[1758832352810,6.178,3901.8,3901.1,2.56337205]
[1758832353011,2.56323793,3901.4,3900.8,1.541]
[1758832353214,0.54020065,3901.7,3900.8,1.541]
[1758832353712,2.5631548,3901.5,3900.8,1.541]
[1758832353912,3.36451735,3901.5,3900.8,4.10455023]
[1758832354111,0.80136255,3901.5,3900.1,1.541]
[1758832354445,0.6838,3901.4,3900.0,7.56604651]
[1758832354639,2.56331385,3901.2,3900.0,5.002]
[1758832354845,2.56387987,3900.4,3900.0,5.002]
[1758832355211,2.78074988,3900.4,3900.0,5.002]
[1758832355549,2.56403681,3900.1,3900.0,5.002]
[1758832355846,3.24783681,3900.1,3900.0,5.002]
[1758832356322,3.78803746,3900.1,3900.0,5.002]
[1758832356518,3.24783681,3900.1,3900.0,5.002]
[1758832356719,4.431,3900.1,3900.0,5.002]
[1758832357121,0.54020065,3900.2,3900.0,5.002]
[1758832357326,0.54020065,3900.1,3900.0,5.002]
[1758832357528,0.6838,3900.1,3900.0,5.002]
[1758832357726,0.54020065,3900.1,3900.0,7.56610256]
[1758832357943,2.136,3900.4,3900.0,7.8006002]
[1758832358150,0.90399923,3900.9,3900.3,2.56390534]
[1758832358328,0.54238625,3900.8,3900.2,3.3559646]
[1758832358646,4.98038625,3901.0,3900.3,0.2345]
[1758832358861,0.54238625,3900.9,3900.6,2.56364275]
[1758832359159,0.54238625,3900.8,3900.6,2.56364275]
[1758832359361,0.54238625,3900.7,3900.6,2.56364275]
[1758832360238,0.54238625,3900.7,3900.6,2.79814275]
[1758832360418,0.54238625,3900.7,3900.6,3.33690476]
[1758832360620,0.54238625,3900.7,3900.6,3.79640476]
[1758832360847,0.54238625,3900.7,3900.6,3.33690476]
[1758832361318,0.54238625,3900.7,3900.6,2.79814275]
[1758832361511,0.54238625,3900.7,3900.2,4.04991075]
[1758832361751,3.03999923,3901.2,3900.2,4.04991075]
[1758832361752,0.54238625,3900.6,3900.5,2.5637632]
[1758832362130,0.54238625,3900.6,3900.5,3.2577632]
[1758832362858,0.67038625,3900.6,3900.5,3.2577632]
[1758832365050,0.54238625,3900.6,3900.5,6.25469164]
[1758832365222,0.128,3901.2,3900.8,3.35555301]
[1758832365423,0.54411234,3901.1,3900.5,2.56742844]
[1758832365619,0.54411234,3901.0,3900.4,0.4595]
[1758832365937,0.128,3900.6,3900.5,2.56377231]
[1758832366122,0.67211234,3900.6,3900.5,2.56377231]
[1758832366318,0.54411234,3900.6,3900.5,4.04977231]
[1758832366655,0.90399923,3901.4,3901.1,2.56333472]
[1758832366829,0.90399923,3901.5,3901.4,2.56318244]
[1758832367031,0.54427228,3901.5,3901.4,2.56318244]
[1758832367350,0.54427228,3901.5,3901.4,4.79818244]
[1758832369753,0.54427228,3901.5,3901.4,6.7698255]
[1758832369961,0.54427228,3901.5,3900.6,5.56364526]
[1758832369962,0.54427228,3901.5,3900.6,3.0]
[1758832370163,0.54428366,3901.4,3900.8,1.541]
[1758832370324,0.54428366,3901.3,3900.8,1.541]
[1758832370523,0.54428366,3901.2,3900.8,1.541]
[1758832370737,1.12089923,3901.6,3900.9,2.56349533]
[1758832370738,0.54428366,3901.1,3900.9,2.56349533]
[1758832370931,1.12089923,3901.6,3900.4,4.433]
[1758832370932,0.54428366,3901.0,3900.4,4.433]
[1758832371236,0.54428366,3900.9,3900.8,2.5635767]
[1758832371754,0.54428366,3900.9,3900.4,0.2255]
[1758832371944,0.54428366,3900.8,3900.2,4.431]
[1758832372141,0.54428366,3900.7,3900.6,2.56366719]
[1758832372560,0.54428366,3900.7,3900.6,5.58096719]
[1758832372736,0.54428366,3900.7,3900.6,4.10466719]
[1758832374742,0.54428366,3900.7,3900.6,4.33016719]
[1758832375359,0.54428366,3900.7,3900.5,1.541]
[1758832375561,0.54428366,3900.6,3900.5,4.10477387]
[1758832375728,0.54428366,3900.6,3900.1,1.541]
[1758832375931,0.54428366,3900.5,3900.2,2.56392404]
[1758832376130,0.54428366,3900.4,3900.2,2.56392404]
[1758832376436,0.54428366,3900.3,3900.2,2.56392404]
[1758832376630,0.54428366,3900.3,3900.0,7.56608665]
[1758832376852,0.67228366,3900.2,3900.1,2.56403681]
[1758832377047,0.67228366,3900.2,3900.0,5.002]
[1758832377250,0.54428366,3900.1,3900.0,5.002]
[1758832377444,0.54428366,3900.1,3900.0,8.25040256]
[1758832377751,0.54428366,3900.1,3900.0,10.58340256]
[1758832377940,0.67995411,3900.7,3900.6,2.56370814]
[1758832378139,0.54398495,3900.7,3900.6,5.58100814]
[1758832378346,0.54398495,3900.7,3900.6,10.01300814]
[1758832378549,0.128,3901.2,3900.8,0.792]
[1758832378730,0.54406766,3901.1,3900.8,2.56353592]
[1758832378962,0.128,3900.9,3900.8,2.56353592]
[1758832379155,0.67206766,3900.9,3900.6,4.432]
[1758832379358,0.54406766,3900.8,3900.7,3.24794242]
[1758832379559,0.54406766,3900.8,3900.7,10.50215866]
[1758832379745,0.128,3901.2,3901.0,2.56344527]
[1758832379746,0.54406766,3901.1,3901.0,2.56344527]
[1758832380067,0.67995411,3901.6,3901.5,2.56311674]
[1758832380274,0.128,3901.7,3901.6,2.56305105]
[1758832380449,0.67212296,3901.7,3901.3,1.541]
[1758832380644,0.54412296,3901.6,3901.3,1.541]
[1758832380871,0.54412296,3901.5,3901.3,1.541]
[1758832381075,0.54412296,3901.4,3901.0,0.2255]
[1758832381233,0.128,3901.0,3900.6,0.2255]
[1758832381441,0.128,3900.8,3900.6,0.2255]
[1758832381639,0.67204459,3900.8,3900.3,4.56]
[1758832381939,0.67204459,3900.8,3900.0,5.002]
[1758832381940,0.128,3900.6,3900.0,5.002]
[1758832382143,0.128,3900.2,3900.0,5.002]
[1758832382338,0.6720384,3900.2,3900.0,5.002]
[1758832382559,0.67995411,3900.7,3900.1,2.25094036]
[1758832382560,0.5440384,3900.6,3900.1,2.25094036]
[1758832382758,0.6720384,3900.5,3900.0,5.002]
[1758832382956,3.10789885,3900.4,3900.0,5.002]
[1758832383157,3.10795872,3900.3,3900.0,5.002]
[1758832383363,2.56392032,3900.3,3900.0,5.002]
[1758832383560,0.5440384,3900.3,3900.0,5.002]
[1758832384043,3.1079445,3900.3,3900.0,5.002]
[1758832384351,0.5440384,3900.5,3900.0,5.002]
[1758832384549,0.5440384,3900.6,3900.1,3.05784036]
[1758832384867,0.5440384,3900.7,3900.0,5.002]
[1758832385041,0.128,3900.2,3900.0,5.002]
[1758832385670,0.128,3900.2,3900.0,7.81578965]
[1758832385840,0.128,3900.2,3900.0,5.002]
[1758832386042,2.56403681,3900.1,3900.0,5.002]
[1758832386238,4.76106992,3900.1,3900.0,5.002]
[1758832386673,4.29386992,3900.1,3900.0,5.002]
[1758832386978,4.76106992,3900.1,3900.0,5.002]
[1758832387160,5.44102403,3900.1,3900.0,5.002]
[1758832387360,9.19406992,3900.1,3900.0,5.002]
[1758832387543,4.97419354,3900.1,3900.0,5.002]
[1758832387867,11.32629354,3900.1,3900.0,5.002]
[1758832388049,10.64596992,3900.1,3900.0,5.002]
[1758832388257,10.35647777,3900.1,3900.0,5.002]
[1758832388461,3.78847777,3900.1,3900.0,5.002]
[1758832388789,8.22047777,3900.1,3900.0,5.002]
[1758832389485,4.9760384,3900.1,3900.0,5.002]
[1758832389683,4.9750384,3900.1,3900.0,5.002]
[1758832390776,4.9740384,3900.1,3900.0,5.002]
[1758832391178,0.5440384,3900.1,3900.0,5.002]
[1758832392969,3.92990369,3900.1,3900.0,5.002]
[1758832393173,4.61400369,3900.1,3900.0,5.002]
[1758832395108,5.29326346,3900.1,3900.0,5.002]
[1758832395313,4.06996529,3900.1,3900.0,5.002]
[1758832395474,5.29244515,3900.1,3900.0,5.002]
[1758832395676,4.82524515,3900.1,3900.0,5.002]
[1758832396123,1.22247986,3900.1,3900.0,5.002]
[1758832396423,4.96932438,3900.1,3900.0,5.002]
[1758832397081,0.54332438,3900.1,3900.0,8.26530256]
[1758832397280,4.425,3900.1,3900.0,5.7012]
[1758832397612,4.425,3900.1,3900.0,8.26530256]
[1758832397774,4.425,3900.1,3900.0,5.7012]
[1758832397971,4.425,3900.1,3900.0,5.2517]
[1758832398185,4.96832438,3900.1,3900.0,7.81580256]
[1758832398385,4.425,3900.1,3900.0,8.28780256]
[1758832400207,4.96832438,3900.1,3900.0,8.28780256]
[1758832400376,4.425,3900.1,3900.0,5.7237]
[1758832400571,4.425,3900.1,3900.0,5.2517]
[1758832400892,4.96532438,3900.1,3900.0,5.002]
[1758832401107,8.02589363,3900.1,3900.0,5.002]
[1758832401586,5.46185682,3900.1,3900.0,5.002]
[1758832402118,4.96432438,3900.1,3900.0,5.002]
[1758832402321,4.96432438,3900.1,3900.0,5.2323]
[1758832402482,4.96432438,3900.1,3900.0,5.002]
[1758832402676,0.54332438,3900.1,3900.0,5.002]
[1758832402873,4.96232438,3900.1,3900.0,5.7043]
[1758832403119,4.96232438,3900.1,3900.0,5.002]
[1758832405117,0.54332438,3900.1,3900.0,5.002]
[1758832405319,12.15032438,3900.1,3900.0,5.002]
[1758832408337,12.82947986,3900.1,3900.0,5.002]
[1758832408539,12.15032438,3900.1,3900.0,5.002]
[1758832408701,12.14632438,3900.1,3900.0,5.002]
[1758832409102,12.82547986,3900.1,3900.0,5.002]
[1758832409617,12.82447986,3900.1,3900.0,5.002]
[1758832409844,14.66741899,3900.1,3900.0,5.002]
[1758832410047,12.82447986,3900.1,3900.0,5.002]
[1758832410607,12.8283947,3900.1,3900.0,5.002]
[1758832410806,12.14706431,3900.1,3900.0,5.002]